[Event "Titled Tuesday Blitz November 08 Late 2022"]
[White "Dzierzak, Radoslaw"]
[Black "Makridis, Dimitrios"]
[WhiteFideId "1161407"]
[BlackFideId "25864475"]
[WhiteElo "2111"]
[BlackElo "2272"]
[Result "0-1"]
[Round "01"]
[TimeControl "180+1"]
[Date "2022.11.09"]
[WhiteClock "0:00:09"]
[BlackClock "0:01:59"]

1. e4 {[%clk 0:03:00]}  c5 {[%clk 0:02:59]} 2. Nf3 {[%clk 0:03:00]}  d6 {[%clk 0:02:59]} 3. d4 {[%clk 0:03:01]}  cxd4 {[%clk 0:02:59]} 4. Nxd4 {[%clk 0:03:02]}  Nf6 {[%clk 0:02:59]} 5. Nc3 {[%clk 0:03:02]}  Nc6 {[%clk 0:03:00]} 6. g3 {[%clk 0:03:02]}  Bg4 {[%clk 0:02:55]} 7. f3 {[%clk 0:03:02]}  Nxd4 {[%clk 0:02:54]} 8. fxg4 {[%clk 0:03:01]}  Nc6 {[%clk 0:02:53]} 9. g5 {[%clk 0:02:56]}  Nd7 {[%clk 0:02:53]} 10. Bc4 {[%clk 0:02:49]}  e6 {[%clk 0:02:53]} 11. O-O {[%clk 0:02:48]}  Be7 {[%clk 0:02:53]} 12. Qh5 {[%clk 0:02:41]}  g6 {[%clk 0:02:48]} 13. Qh6 {[%clk 0:02:23]}  Bf8 {[%clk 0:02:47]} 14. Qh3 {[%clk 0:02:22]}  Bg7 {[%clk 0:02:45]} 15. Be3 {[%clk 0:01:50]}  Nce5 {[%clk 0:02:35]} 16. Bb3 {[%clk 0:01:37]}  Qe7 {[%clk 0:02:28]} 17. Rad1 {[%clk 0:01:34]}  a6 {[%clk 0:02:25]} 18. Rf2 {[%clk 0:01:24]}  O-O-O {[%clk 0:02:17]} 19. Qf1 {[%clk 0:01:07]}  Kb8 {[%clk 0:02:13]} 20. Rfd2 {[%clk 0:01:06]}  Nc5 {[%clk 0:02:08]} 21. Qg2 {[%clk 0:00:36]}  h6 {[%clk 0:02:00]} 22. gxh6 {[%clk 0:00:34]}  Bxh6 {[%clk 0:02:00]} 23. Bxh6 {[%clk 0:00:34]}  Rxh6 {[%clk 0:02:01]} 24. Na4 {[%clk 0:00:33]}  Nxa4 {[%clk 0:01:59]} 25. Bxa4 {[%clk 0:00:34]}  Qc7 {[%clk 0:01:59]} 26. c3 {[%clk 0:00:25]}  g5 {[%clk 0:01:59]} 27. h3 {[%clk 0:00:23]}  g4 {[%clk 0:01:59]} 28. h4 {[%clk 0:00:23]}  Nf3+ {[%clk 0:01:59]} 29. Kh1 {[%clk 0:00:23]}  Rdh8 {[%clk 0:01:59]} 30. Rxd6 {[%clk 0:00:09]}  Rxh4+ {[%clk 0:01:59]} 31. gxh4 {[%clk 0:00:09]}  Rxh4+ {[%clk 0:02:00]} 32. Qh3 {[%clk 0:00:09]}  Rxh3+ {[%clk 0:02:00]} 33. Kg2 {[%clk 0:00:09]}  Ka7 {[%clk 0:01:59]} 34. Rd7 {[%clk 0:00:09]} 0-1


[Site "https://www.chess.com"]

[Event "Titled Tuesday Blitz November 08 Late 2022"]
[White "Fernandez Guillen, Ernesto J."]
[Black "Reprintsev, Alexander"]
[WhiteFideId "3512428"]
[BlackFideId "14100541"]
[WhiteElo "2450"]
[BlackElo "2230"]
[Result "1-0"]
[Round "01"]
[TimeControl "180+1"]
[Date "2022.11.09"]
[WhiteClock "0:00:11"]
[BlackClock "0:00:10"]

1. e4 {[%clk 0:03:00]}  d5 {[%clk 0:02:48]} 2. e5 {[%clk 0:02:58]}  c5 {[%clk 0:02:46]} 3. f4 {[%clk 0:02:58]}  g5 {[%clk 0:02:45]} 4. Nf3 {[%clk 0:02:59]}  g4 {[%clk 0:02:44]} 5. Ng1 {[%clk 0:02:55]}  h5 {[%clk 0:02:42]} 6. d4 {[%clk 0:02:53]}  Nh6 {[%clk 0:02:35]} 7. c3 {[%clk 0:02:34]}  Bf5 {[%clk 0:02:27]} 8. Bb5+ {[%clk 0:02:27]}  Nc6 {[%clk 0:02:23]} 9. dxc5 {[%clk 0:02:24]}  e6 {[%clk 0:02:23]} 10. Be3 {[%clk 0:02:22]}  Be4 {[%clk 0:02:21]} 11. Ne2 {[%clk 0:01:55]}  Bxg2 {[%clk 0:02:16]} 12. Rg1 {[%clk 0:01:55]}  Bf3 {[%clk 0:02:16]} 13. Qa4 {[%clk 0:01:54]}  Rc8 {[%clk 0:02:14]} 14. Nd4 {[%clk 0:01:53]}  Qd7 {[%clk 0:01:56]} 15. b4 {[%clk 0:01:34]}  Nf5 {[%clk 0:01:53]} 16. Nxf5 {[%clk 0:01:32]}  exf5 {[%clk 0:01:54]} 17. Nd2 {[%clk 0:01:31]}  Be4 {[%clk 0:01:51]} 18. O-O-O {[%clk 0:01:28]}  Be7 {[%clk 0:01:50]} 19. Nxe4 {[%clk 0:01:26]}  fxe4 {[%clk 0:01:49]} 20. c4 {[%clk 0:01:23]}  d4 {[%clk 0:01:41]} 21. Rxd4 {[%clk 0:01:21]}  Qf5 {[%clk 0:01:34]} 22. Rd5 {[%clk 0:01:21]}  O-O {[%clk 0:01:29]} 23. h3 {[%clk 0:01:17]}  Rfd8 {[%clk 0:01:11]} 24. hxg4 {[%clk 0:01:15]}  hxg4 {[%clk 0:01:11]} 25. a3 {[%clk 0:00:48]}  a6 {[%clk 0:01:06]} 26. Bxc6 {[%clk 0:00:49]}  bxc6 {[%clk 0:01:07]} 27. Rdd1 {[%clk 0:00:49]}  Rxd1+ {[%clk 0:01:04]} 28. Qxd1 {[%clk 0:00:50]}  Rd8 {[%clk 0:00:53]} 29. Qxg4+ {[%clk 0:00:49]}  Qxg4 {[%clk 0:00:53]} 30. Rxg4+ {[%clk 0:00:50]}  Kf8 {[%clk 0:00:53]} 31. f5 {[%clk 0:00:50]}  Rd3 {[%clk 0:00:51]} 32. Bh6+ {[%clk 0:00:46]}  Ke8 {[%clk 0:00:49]} 33. e6 {[%clk 0:00:43]}  fxe6 {[%clk 0:00:44]} 34. fxe6 {[%clk 0:00:44]}  Bf6 {[%clk 0:00:40]} 35. Rxe4 {[%clk 0:00:34]}  Rxa3 {[%clk 0:00:39]} 36. Re3 {[%clk 0:00:27]}  Ra4 {[%clk 0:00:32]} 37. Rb3 {[%clk 0:00:19]}  Ke7 {[%clk 0:00:32]} 38. Kc2 {[%clk 0:00:19]}  Kxe6 {[%clk 0:00:31]} 39. Re3+ {[%clk 0:00:19]}  Kd7 {[%clk 0:00:27]} 40. Kb3 {[%clk 0:00:20]}  Ra1 {[%clk 0:00:27]} 41. Rd3+ {[%clk 0:00:21]}  Kc8 {[%clk 0:00:23]} 42. Rd6 {[%clk 0:00:18]}  Rb1+ {[%clk 0:00:19]} 43. Ka2 {[%clk 0:00:18]}  Rb2+ {[%clk 0:00:19]} 44. Ka3 {[%clk 0:00:18]}  Bc3 {[%clk 0:00:19]} 45. Rxc6+ {[%clk 0:00:18]}  Kb7 {[%clk 0:00:19]} 46. Rb6+ {[%clk 0:00:18]}  Ka7 {[%clk 0:00:20]} 47. b5 {[%clk 0:00:11]}  axb5 {[%clk 0:00:17]} 48. cxb5 {[%clk 0:00:12]}  Rh2 {[%clk 0:00:16]} 49. Ra6+ {[%clk 0:00:12]}  Kb7 {[%clk 0:00:16]} 50. c6+ {[%clk 0:00:12]}  Kc7 {[%clk 0:00:11]} 51. Bf4+ {[%clk 0:00:13]}  Kd8 {[%clk 0:00:11]} 52. Ra8+ {[%clk 0:00:12]}  Ke7 {[%clk 0:00:11]} 53. c7 {[%clk 0:00:12]}  Bb2+ {[%clk 0:00:10]} 54. Kb3 {[%clk 0:00:12]}  Rh3+ {[%clk 0:00:10]} 55. Kxb2 {[%clk 0:00:12]}  Rh8 {[%clk 0:00:10]} 56. Rxh8 {[%clk 0:00:11]} 1-0


[Site "https://www.chess.com"]

[Event "Titled Tuesday Blitz November 08 Late 2022"]
[White "Fernandez Hernandez, Gerardo"]
[Black "Taichman, Ori"]
[WhiteFideId "2207400"]
[BlackFideId "2804069"]
[WhiteElo "2236"]
[BlackElo "2234"]
[Result "0-1"]
[Round "01"]
[TimeControl "180+1"]
[Date "2022.11.09"]
[WhiteClock "0:00:10"]
[BlackClock "0:00:22"]

1. e4 {[%clk 0:02:58]}  c5 {[%clk 0:02:52]} 2. d3 {[%clk 0:02:58]}  Nc6 {[%clk 0:02:52]} 3. g3 {[%clk 0:02:58]}  d5 {[%clk 0:02:52]} 4. Bg2 {[%clk 0:02:59]}  dxe4 {[%clk 0:02:52]} 5. dxe4 {[%clk 0:02:59]}  Qxd1+ {[%clk 0:02:52]} 6. Kxd1 {[%clk 0:03:00]}  Bg4+ {[%clk 0:02:51]} 7. f3 {[%clk 0:02:58]}  O-O-O+ {[%clk 0:02:52]} 8. Ke1 {[%clk 0:02:54]}  Nb4 {[%clk 0:02:39]} 9. Na3 {[%clk 0:02:48]}  Be6 {[%clk 0:02:38]} 10. Be3 {[%clk 0:02:31]}  b6 {[%clk 0:02:29]} 11. Ne2 {[%clk 0:02:30]}  f5 {[%clk 0:02:29]} 12. Nf4 {[%clk 0:02:25]}  Bd7 {[%clk 0:02:16]} 13. c3 {[%clk 0:02:22]}  e5 {[%clk 0:02:16]} 14. cxb4 {[%clk 0:02:08]}  exf4 {[%clk 0:02:08]} 15. Bxf4 {[%clk 0:02:02]}  cxb4 {[%clk 0:02:04]} 16. Rc1+ {[%clk 0:01:57]}  Bc5 {[%clk 0:02:04]} 17. Nc4 {[%clk 0:01:48]}  Kb7 {[%clk 0:01:56]} 18. Bd6 {[%clk 0:01:28]}  Nh6 {[%clk 0:01:13]} 19. e5 {[%clk 0:01:04]}  f4 {[%clk 0:00:56]} 20. Bxc5 {[%clk 0:00:41]}  bxc5 {[%clk 0:00:56]} 21. Kf2 {[%clk 0:00:39]}  g5 {[%clk 0:00:37]} 22. g4 {[%clk 0:00:35]}  Bc6 {[%clk 0:00:31]} 23. Nd6+ {[%clk 0:00:31]}  Kb6 {[%clk 0:00:31]} 24. Nc4+ {[%clk 0:00:31]}  Ka6 {[%clk 0:00:30]} 25. Bf1 {[%clk 0:00:27]}  Bb5 {[%clk 0:00:28]} 26. Be2 {[%clk 0:00:24]}  Nf7 {[%clk 0:00:23]} 27. h4 {[%clk 0:00:19]}  h6 {[%clk 0:00:20]} 28. hxg5 {[%clk 0:00:19]}  hxg5 {[%clk 0:00:21]} 29. Rxh8 {[%clk 0:00:15]}  Nxh8 {[%clk 0:00:21]} 30. b3 {[%clk 0:00:13]}  Ng6 {[%clk 0:00:20]} 31. Rd1 {[%clk 0:00:11]}  Rxd1 {[%clk 0:00:19]} 32. Bxd1 {[%clk 0:00:11]}  Bxc4 {[%clk 0:00:20]} 33. bxc4 {[%clk 0:00:10]}  Nxe5 {[%clk 0:00:21]} 34. Be2 {[%clk 0:00:10]}  Ka5 {[%clk 0:00:21]} 35. Ke1 {[%clk 0:00:11]}  Ka4 {[%clk 0:00:21]} 36. Kd2 {[%clk 0:00:11]}  Ka3 {[%clk 0:00:22]} 37. Kc2 {[%clk 0:00:10]}  Kxa2 {[%clk 0:00:22]} 0-1


[Site "https://www.chess.com"]

[Event "Titled Tuesday Blitz November 08 Late 2022"]
[White "Gareyev, Timur"]
[Black "Chojnacki, Slawomir"]
[WhiteFideId "14200937"]
[BlackFideId "1117076"]
[WhiteElo "2552"]
[BlackElo "2096"]
[Result "1-0"]
[Round "01"]
[TimeControl "180+1"]
[Date "2022.11.09"]
[WhiteClock "0:01:10"]
[BlackClock "0:01:06"]

1. d4 {[%clk 0:02:54]}  c6 {[%clk 0:03:00]} 2. Bf4 {[%clk 0:02:51]}  d5 {[%clk 0:03:01]} 3. e3 {[%clk 0:02:50]}  Nf6 {[%clk 0:03:01]} 4. c4 {[%clk 0:02:51]}  Bf5 {[%clk 0:03:01]} 5. Qb3 {[%clk 0:02:51]}  Qb6 {[%clk 0:03:00]} 6. c5 {[%clk 0:02:50]}  Qxb3 {[%clk 0:03:00]} 7. axb3 {[%clk 0:02:50]}  Bxb1 {[%clk 0:03:00]} 8. Rxb1 {[%clk 0:02:48]}  Nbd7 {[%clk 0:03:01]} 9. b4 {[%clk 0:02:45]}  a6 {[%clk 0:03:01]} 10. h3 {[%clk 0:02:45]}  h6 {[%clk 0:03:00]} 11. Nf3 {[%clk 0:02:44]}  g5 {[%clk 0:03:00]} 12. Bh2 {[%clk 0:02:44]}  Bg7 {[%clk 0:03:00]} 13. Bd3 {[%clk 0:02:42]}  O-O {[%clk 0:03:00]} 14. h4 {[%clk 0:02:37]}  g4 {[%clk 0:02:55]} 15. Ne5 {[%clk 0:02:36]}  h5 {[%clk 0:02:54]} 16. f3 {[%clk 0:02:36]}  Nxe5 {[%clk 0:02:50]} 17. Bxe5 {[%clk 0:02:35]}  Nd7 {[%clk 0:02:45]} 18. Bxg7 {[%clk 0:02:35]}  Kxg7 {[%clk 0:02:46]} 19. Kd2 {[%clk 0:02:32]}  gxf3 {[%clk 0:02:30]} 20. gxf3 {[%clk 0:02:31]}  Kh6 {[%clk 0:02:30]} 21. Rbg1 {[%clk 0:02:29]}  Rg8 {[%clk 0:02:30]} 22. e4 {[%clk 0:02:25]}  dxe4 {[%clk 0:02:12]} 23. fxe4 {[%clk 0:02:23]}  Nf6 {[%clk 0:02:10]} 24. Ke3 {[%clk 0:02:09]}  Rg4 {[%clk 0:02:07]} 25. Rxg4 {[%clk 0:01:59]}  Nxg4+ {[%clk 0:02:06]} 26. Kd2 {[%clk 0:01:56]}  Rd8 {[%clk 0:02:04]} 27. Kc3 {[%clk 0:01:55]}  e5 {[%clk 0:01:59]} 28. d5 {[%clk 0:01:54]}  cxd5 {[%clk 0:01:59]} 29. exd5 {[%clk 0:01:55]}  Rxd5 {[%clk 0:01:55]} 30. Be4 {[%clk 0:01:52]}  Rd7 {[%clk 0:01:54]} 31. Rf1 {[%clk 0:01:50]}  Kg7 {[%clk 0:01:41]} 32. Rf5 {[%clk 0:01:49]}  Rd4 {[%clk 0:01:39]} 33. Bxb7 {[%clk 0:01:46]}  f6 {[%clk 0:01:34]} 34. Rxh5 {[%clk 0:01:35]}  Ne3 {[%clk 0:01:30]} 35. c6 {[%clk 0:01:24]}  Nd5+ {[%clk 0:01:26]} 36. Kb3 {[%clk 0:01:23]}  Rxb4+ {[%clk 0:01:26]} 37. Ka3 {[%clk 0:01:22]}  Rc4 {[%clk 0:01:21]} 38. b3 {[%clk 0:01:22]}  Rc5 {[%clk 0:01:19]} 39. Rf5 {[%clk 0:01:19]}  e4 {[%clk 0:01:16]} 40. Rxd5 {[%clk 0:01:17]}  Rxd5 {[%clk 0:01:11]} 41. c7 {[%clk 0:01:17]}  Rc5 {[%clk 0:01:11]} 42. c8=Q {[%clk 0:01:17]}  Rxc8 {[%clk 0:01:12]} 43. Bxc8 {[%clk 0:01:17]}  a5 {[%clk 0:01:11]} 44. Kb2 {[%clk 0:01:17]}  Kh6 {[%clk 0:01:07]} 45. Kc3 {[%clk 0:01:16]}  Kh5 {[%clk 0:01:07]} 46. Kd4 {[%clk 0:01:15]}  Kxh4 {[%clk 0:01:07]} 47. Kxe4 {[%clk 0:01:15]}  Kg5 {[%clk 0:01:07]} 48. Kd5 {[%clk 0:01:13]}  Kf4 {[%clk 0:01:07]} 49. Kc5 {[%clk 0:01:11]}  Ke5 {[%clk 0:01:07]} 50. Kb5 {[%clk 0:01:10]}  f5 {[%clk 0:01:06]} 51. Kxa5 {[%clk 0:01:10]}  f4 {[%clk 0:01:06]} 52. Bg4 {[%clk 0:01:10]} 1-0


[Site "https://www.chess.com"]

[Event "Titled Tuesday Blitz November 08 Late 2022"]
[White "Gonzalez, Francisco Silva"]
[Black "Kanakaris, Georgios"]
[WhiteFideId "1512285"]
[BlackFideId "4209460"]
[WhiteElo "2159"]
[BlackElo "2291"]
[Result "0-1"]
[Round "01"]
[TimeControl "180+1"]
[Date "2022.11.09"]
[WhiteClock "0:01:11"]
[BlackClock "0:01:02"]

1. d4 {[%clk 0:02:40]}  Nf6 {[%clk 0:02:59]} 2. c4 {[%clk 0:02:39]}  g6 {[%clk 0:02:59]} 3. Nc3 {[%clk 0:02:36]}  Bg7 {[%clk 0:03:00]} 4. e4 {[%clk 0:02:33]}  d6 {[%clk 0:03:00]} 5. f3 {[%clk 0:02:31]}  O-O {[%clk 0:03:00]} 6. Be3 {[%clk 0:02:27]}  e5 {[%clk 0:02:57]} 7. d5 {[%clk 0:02:26]}  Nh5 {[%clk 0:02:57]} 8. Qd2 {[%clk 0:02:25]}  Qh4+ {[%clk 0:02:51]} 9. Bf2 {[%clk 0:02:24]}  Qe7 {[%clk 0:02:47]} 10. Be3 {[%clk 0:02:24]}  f5 {[%clk 0:02:46]} 11. O-O-O {[%clk 0:02:24]}  a5 {[%clk 0:02:23]} 12. Bd3 {[%clk 0:02:23]}  f4 {[%clk 0:02:21]} 13. Bf2 {[%clk 0:02:23]}  Na6 {[%clk 0:02:22]} 14. a3 {[%clk 0:02:22]}  Bd7 {[%clk 0:02:22]} 15. Kb1 {[%clk 0:02:21]}  a4 {[%clk 0:02:21]} 16. Nb5 {[%clk 0:02:18]}  Bxb5 {[%clk 0:02:17]} 17. cxb5 {[%clk 0:02:18]}  Nc5 {[%clk 0:02:17]} 18. Bc4 {[%clk 0:02:18]}  b6 {[%clk 0:02:14]} 19. Ne2 {[%clk 0:02:16]}  Nf6 {[%clk 0:02:15]} 20. Nc3 {[%clk 0:02:15]}  Nfd7 {[%clk 0:02:15]} 21. Qe2 {[%clk 0:02:09]}  Ra5 {[%clk 0:02:12]} 22. Bd3 {[%clk 0:02:09]}  Nxd3 {[%clk 0:02:03]} 23. Qxd3 {[%clk 0:02:08]}  Nc5 {[%clk 0:02:04]} 24. Qc4 {[%clk 0:02:08]}  Rfa8 {[%clk 0:02:01]} 25. Rhg1 {[%clk 0:02:07]}  Qd7 {[%clk 0:01:49]} 26. Rd2 {[%clk 0:02:05]}  Nb3 {[%clk 0:01:49]} 27. Rdd1 {[%clk 0:02:02]}  Nd4 {[%clk 0:01:50]} 28. Rc1 {[%clk 0:02:00]}  R8a7 {[%clk 0:01:36]} 29. Ka2 {[%clk 0:01:56]}  Nxb5 {[%clk 0:01:33]} 30. Nxb5 {[%clk 0:01:52]}  Qxb5 {[%clk 0:01:32]} 31. Qxb5 {[%clk 0:01:52]}  Rxb5 {[%clk 0:01:33]} 32. Rc3 {[%clk 0:01:52]}  Bf6 {[%clk 0:01:33]} 33. Rgc1 {[%clk 0:01:51]}  Bd8 {[%clk 0:01:33]} 34. Rc6 {[%clk 0:01:46]}  Kf7 {[%clk 0:01:33]} 35. R1c4 {[%clk 0:01:45]}  Ke8 {[%clk 0:01:32]} 36. Rb4 {[%clk 0:01:45]}  Rxb4 {[%clk 0:01:27]} 37. axb4 {[%clk 0:01:45]}  Kd7 {[%clk 0:01:27]} 38. Ka3 {[%clk 0:01:44]}  Ra8 {[%clk 0:01:26]} 39. b5 {[%clk 0:01:40]}  g5 {[%clk 0:01:23]} 40. h3 {[%clk 0:01:40]}  h5 {[%clk 0:01:22]} 41. Rc1 {[%clk 0:01:38]}  Be7 {[%clk 0:01:23]} 42. Kb4 {[%clk 0:01:37]}  Rg8 {[%clk 0:01:20]} 43. Rh1 {[%clk 0:01:34]}  g4 {[%clk 0:01:19]} 44. hxg4 {[%clk 0:01:34]}  hxg4 {[%clk 0:01:20]} 45. Rh7 {[%clk 0:01:34]}  Kd8 {[%clk 0:01:18]} 46. Kxa4 {[%clk 0:01:29]}  gxf3 {[%clk 0:01:18]} 47. gxf3 {[%clk 0:01:29]}  Rg2 {[%clk 0:01:17]} 48. Rh8+ {[%clk 0:01:29]}  Kd7 {[%clk 0:01:17]} 49. Bh4 {[%clk 0:01:25]}  Bxh4 {[%clk 0:01:14]} 50. Rxh4 {[%clk 0:01:24]}  Rg3 {[%clk 0:01:15]} 51. Rh8 {[%clk 0:01:20]}  Rxf3 {[%clk 0:01:14]} 52. Kb4 {[%clk 0:01:17]}  Re3 {[%clk 0:01:14]} 53. Kc4 {[%clk 0:01:17]}  Rxe4+ {[%clk 0:01:14]} 54. Kc3 {[%clk 0:01:18]}  Rd4 {[%clk 0:01:14]} 55. Rh7+ {[%clk 0:01:18]}  Kc8 {[%clk 0:01:13]} 56. Re7 {[%clk 0:01:18]}  Rxd5 {[%clk 0:01:12]} 57. Kc4 {[%clk 0:01:19]}  Rc5+ {[%clk 0:01:11]} 58. Kb4 {[%clk 0:01:19]}  Kd8 {[%clk 0:01:11]} 59. Re6 {[%clk 0:01:19]}  Kd7 {[%clk 0:01:10]} 60. Rf6 {[%clk 0:01:19]}  Ke7 {[%clk 0:01:10]} 61. Rf5 {[%clk 0:01:19]}  Ke6 {[%clk 0:01:10]} 62. Rf8 {[%clk 0:01:20]}  e4 {[%clk 0:01:10]} 63. Rxf4 {[%clk 0:01:18]}  Ke5 {[%clk 0:01:11]} 64. Rf1 {[%clk 0:01:18]}  e3 {[%clk 0:01:11]} 65. Rf8 {[%clk 0:01:17]}  Ke4 {[%clk 0:01:10]} 66. Re8+ {[%clk 0:01:17]}  Kd3 {[%clk 0:01:10]} 67. Ka4 {[%clk 0:01:16]}  e2 {[%clk 0:01:10]} 68. b4 {[%clk 0:01:17]}  Re5 {[%clk 0:01:10]} 69. Rc8 {[%clk 0:01:11]}  e1=Q {[%clk 0:01:09]} 70. Rxc7 {[%clk 0:01:12]}  Qa1+ {[%clk 0:01:08]} 71. Kb3 {[%clk 0:01:12]}  Qb1+ {[%clk 0:01:06]} 72. Ka3 {[%clk 0:01:12]}  Kd4 {[%clk 0:01:03]} 73. Rc3 {[%clk 0:01:11]}  Kxc3 {[%clk 0:01:02]} 0-1


[Site "https://www.chess.com"]

[Event "Titled Tuesday Blitz November 08 Late 2022"]
[White "Hansen, Eric"]
[Black "Ferreira, Vitor Hugo Vieira"]
[WhiteFideId "2606771"]
[BlackFideId "2119765"]
[WhiteElo "2568"]
[BlackElo "2168"]
[Result "0-1"]
[Round "01"]
[TimeControl "180+1"]
[Date "2022.11.08"]
[WhiteClock "0:00:01"]
[BlackClock "0:00:13"]

1. c4 {[%clk 0:02:57]}  c6 {[%clk 0:02:59]} 2. Nf3 {[%clk 0:02:54]}  d5 {[%clk 0:02:59]} 3. b3 {[%clk 0:02:52]}  Nf6 {[%clk 0:02:59]} 4. Bb2 {[%clk 0:02:52]}  g6 {[%clk 0:02:59]} 5. g3 {[%clk 0:02:50]}  Bg7 {[%clk 0:02:59]} 6. Bg2 {[%clk 0:02:51]}  O-O {[%clk 0:02:59]} 7. O-O {[%clk 0:02:52]}  b6 {[%clk 0:02:59]} 8. d3 {[%clk 0:02:52]}  Bb7 {[%clk 0:02:59]} 9. Nbd2 {[%clk 0:02:52]}  Nbd7 {[%clk 0:02:59]} 10. b4 {[%clk 0:02:52]}  Re8 {[%clk 0:02:58]} 11. Qb3 {[%clk 0:02:52]}  e5 {[%clk 0:02:57]} 12. cxd5 {[%clk 0:02:47]}  cxd5 {[%clk 0:02:56]} 13. Rac1 {[%clk 0:02:47]}  e4 {[%clk 0:02:56]} 14. dxe4 {[%clk 0:02:44]}  dxe4 {[%clk 0:02:56]} 15. Ng5 {[%clk 0:02:44]}  Bd5 {[%clk 0:02:52]} 16. Qa4 {[%clk 0:02:42]}  e3 {[%clk 0:02:52]} 17. Ndf3 {[%clk 0:02:11]}  exf2+ {[%clk 0:02:47]} 18. Kh1 {[%clk 0:02:11]}  Rxe2 {[%clk 0:02:40]} 19. Ba1 {[%clk 0:02:00]}  Rxa2 {[%clk 0:02:34]} 20. Qd1 {[%clk 0:01:58]}  Nf8 {[%clk 0:01:59]} 21. Bd4 {[%clk 0:01:20]}  h6 {[%clk 0:01:43]} 22. Nh3 {[%clk 0:01:17]}  Ng4 {[%clk 0:01:19]} 23. Nxf2 {[%clk 0:00:42]}  Bxd4 {[%clk 0:01:08]} 24. Nxg4 {[%clk 0:00:40]}  Bg7 {[%clk 0:00:46]} 25. Ne3 {[%clk 0:00:32]}  Bb7 {[%clk 0:00:45]} 26. Qb3 {[%clk 0:00:27]}  Rb2 {[%clk 0:00:40]} 27. Qa3 {[%clk 0:00:27]}  Qe7 {[%clk 0:00:38]} 28. Rb1 {[%clk 0:00:14]}  Rxb1 {[%clk 0:00:34]} 29. Rxb1 {[%clk 0:00:15]}  a5 {[%clk 0:00:31]} 30. Nc4 {[%clk 0:00:15]}  axb4 {[%clk 0:00:28]} 31. Qb3 {[%clk 0:00:15]}  Bd5 {[%clk 0:00:24]} 32. Nfd2 {[%clk 0:00:09]}  Bxg2+ {[%clk 0:00:23]} 33. Kxg2 {[%clk 0:00:09]}  b5 {[%clk 0:00:20]} 34. Nb6 {[%clk 0:00:02]}  Qe2+ {[%clk 0:00:17]} 35. Kh3 {[%clk 0:00:01]}  Ra6 {[%clk 0:00:13]} 0-1


[Site "https://www.chess.com"]

[Event "Titled Tuesday Blitz November 08 Late 2022"]
[White "Harvey, Marcus R"]
[Black "Bogaudinov, Rushan"]
[WhiteFideId "400092"]
[BlackFideId "4129288"]
[WhiteElo "2457"]
[BlackElo "1997"]
[Result "1/2-1/2"]
[Round "01"]
[TimeControl "180+1"]
[Date "2022.11.09"]
[WhiteClock "0:00:06"]
[BlackClock "0:00:05"]

1. d4 {[%clk 0:02:49]}  d5 {[%clk 0:02:59]} 2. Bf4 {[%clk 0:02:41]}  c6 {[%clk 0:02:58]} 3. e3 {[%clk 0:02:38]}  Nf6 {[%clk 0:02:58]} 4. c4 {[%clk 0:02:36]}  g6 {[%clk 0:02:51]} 5. Nc3 {[%clk 0:02:33]}  Bg7 {[%clk 0:02:49]} 6. cxd5 {[%clk 0:02:33]}  Nxd5 {[%clk 0:02:48]} 7. Nxd5 {[%clk 0:02:31]}  Qxd5 {[%clk 0:02:44]} 8. Ne2 {[%clk 0:02:31]}  O-O {[%clk 0:02:42]} 9. Nc3 {[%clk 0:02:30]}  Qa5 {[%clk 0:02:38]} 10. Qa4 {[%clk 0:02:22]}  Qxa4 {[%clk 0:02:35]} 11. Nxa4 {[%clk 0:02:23]}  Nd7 {[%clk 0:02:35]} 12. O-O-O {[%clk 0:02:11]}  e5 {[%clk 0:02:19]} 13. dxe5 {[%clk 0:02:11]}  Nxe5 {[%clk 0:02:19]} 14. h3 {[%clk 0:02:03]}  b6 {[%clk 0:02:00]} 15. Nc3 {[%clk 0:01:50]}  Be6 {[%clk 0:01:55]} 16. Ba6 {[%clk 0:01:49]}  Rad8 {[%clk 0:01:49]} 17. Bg5 {[%clk 0:01:45]}  f6 {[%clk 0:01:45]} 18. Bf4 {[%clk 0:01:45]}  Kf7 {[%clk 0:01:26]} 19. Bb7 {[%clk 0:01:32]}  Rb8 {[%clk 0:01:07]} 20. Ba6 {[%clk 0:01:29]}  Rfd8 {[%clk 0:01:04]} 21. b3 {[%clk 0:01:19]}  Ke7 {[%clk 0:00:56]} 22. Bxe5 {[%clk 0:01:11]}  fxe5 {[%clk 0:00:55]} 23. Bc4 {[%clk 0:01:11]}  Bxc4 {[%clk 0:00:49]} 24. bxc4 {[%clk 0:01:12]}  Rxd1+ {[%clk 0:00:47]} 25. Rxd1 {[%clk 0:01:11]}  Rd8 {[%clk 0:00:47]} 26. Rxd8 {[%clk 0:01:10]}  Kxd8 {[%clk 0:00:47]} 27. Kc2 {[%clk 0:01:04]}  Ke7 {[%clk 0:00:46]} 28. Kd3 {[%clk 0:01:00]}  Ke6 {[%clk 0:00:42]} 29. Ne4 {[%clk 0:00:57]}  h6 {[%clk 0:00:40]} 30. g4 {[%clk 0:00:56]}  Bf8 {[%clk 0:00:36]} 31. f3 {[%clk 0:00:51]}  Be7 {[%clk 0:00:35]} 32. Nd2 {[%clk 0:00:45]}  Bb4 {[%clk 0:00:30]} 33. Ne4 {[%clk 0:00:42]}  b5 {[%clk 0:00:25]} 34. h4 {[%clk 0:00:35]}  a5 {[%clk 0:00:20]} 35. h5 {[%clk 0:00:16]}  gxh5 {[%clk 0:00:19]} 36. gxh5 {[%clk 0:00:17]}  a4 {[%clk 0:00:20]} 37. cxb5 {[%clk 0:00:15]}  cxb5 {[%clk 0:00:20]} 38. Nc3 {[%clk 0:00:16]}  Bxc3 {[%clk 0:00:17]} 39. Kxc3 {[%clk 0:00:17]}  Kf5 {[%clk 0:00:11]} 40. Kb4 {[%clk 0:00:15]}  Kg5 {[%clk 0:00:10]} 41. Kxb5 {[%clk 0:00:16]}  a3 {[%clk 0:00:11]} 42. Kb4 {[%clk 0:00:10]}  Kxh5 {[%clk 0:00:11]} 43. Kxa3 {[%clk 0:00:10]}  Kg5 {[%clk 0:00:11]} 44. Kb4 {[%clk 0:00:11]}  h5 {[%clk 0:00:12]} 45. a4 {[%clk 0:00:11]}  h4 {[%clk 0:00:12]} 46. a5 {[%clk 0:00:11]}  h3 {[%clk 0:00:13]} 47. a6 {[%clk 0:00:12]}  h2 {[%clk 0:00:14]} 48. a7 {[%clk 0:00:13]}  h1=Q {[%clk 0:00:14]} 49. a8=Q {[%clk 0:00:14]}  Qb1+ {[%clk 0:00:14]} 50. Kc5 {[%clk 0:00:13]}  Qc1+ {[%clk 0:00:10]} 51. Kd6 {[%clk 0:00:13]}  Qxe3 {[%clk 0:00:10]} 52. Qe4 {[%clk 0:00:10]}  Qf4 {[%clk 0:00:02]} 53. Qxe5+ {[%clk 0:00:09]}  Qf5 {[%clk 0:00:03]} 54. Kd5 {[%clk 0:00:07]}  Kg6 {[%clk 0:00:02]} 55. f4 {[%clk 0:00:07]}  Qf7+ {[%clk 0:00:02]} 56. Qe6+ {[%clk 0:00:06]}  Qf6 {[%clk 0:00:02]} 57. Kd6 {[%clk 0:00:06]}  Kg7 {[%clk 0:00:01]} 58. f5 {[%clk 0:00:06]}  Qd4+ {[%clk 0:00:02]} 59. Ke7 {[%clk 0:00:06]}  Qc5+ {[%clk 0:00:02]} 60. Kd7 {[%clk 0:00:05]}  Qb5+ {[%clk 0:00:02]} 61. Kd6 {[%clk 0:00:05]}  Qb6+ {[%clk 0:00:02]} 62. Ke5 {[%clk 0:00:06]}  Qe3+ {[%clk 0:00:02]} 63. Kd5 {[%clk 0:00:06]}  Qb3+ {[%clk 0:00:03]} 64. Kd6 {[%clk 0:00:07]}  Qb6+ {[%clk 0:00:03]} 65. Ke7 {[%clk 0:00:06]}  Qc7+ {[%clk 0:00:03]} 66. Qd7 {[%clk 0:00:06]}  Qxd7+ {[%clk 0:00:03]} 67. Kxd7 {[%clk 0:00:07]}  Kf6 {[%clk 0:00:04]} 68. Kd6 {[%clk 0:00:06]}  Kxf5 {[%clk 0:00:05]} 1/2-1/2


[Site "https://www.chess.com"]